bitfinex/quotes_BTCUSD_20240703
["timestamp","ask_amount","ask_price","bid_price","bid_amount"]
[1720001670683,0.0969439,60415.0,60410.0,0.22535152]
[1720001670919,1.99367495,60414.0,60410.0,0.22535152]
[1720001671131,1.99367495,60413.0,60410.0,0.22535152]
[1720001671343,1.97364395,60412.0,60410.0,0.22535152]
[1720001671552,2.42172095,60411.0,60410.0,0.22535152]
[1720001671968,2.42172095,60411.0,60405.0,0.22627552]
[1720001672209,2.42172095,60411.0,60405.0,0.000924]
[1720001672210,2.66217557,60410.0,60405.0,0.000924]
[1720001672422,2.42172095,60409.0,60405.0,0.000924]
[1720001672633,2.58201975,60408.0,60405.0,0.000924]
[1720001672847,2.42172095,60407.0,60405.0,0.000924]
[1720001673059,2.58201975,60406.0,60405.0,0.000924]
[1720001673272,2.66760575,60406.0,60405.0,0.000924]
[1720001673510,2.65738697,60406.0,60405.0,0.000924]
[1720001675269,3.15738697,60406.0,60405.0,0.000924]
[1720001676151,3.20562673,60406.0,60405.0,0.000924]
[1720001676367,3.20458381,60406.0,60405.0,0.000924]
[1720001679446,3.0817988,60406.0,60405.0,0.000924]
[1720001679652,3.20470067,60406.0,60405.0,0.000924]
[1720001679875,3.20470067,60406.0,60367.0,0.22535152]
[1720001680079,0.1602988,60386.0,60380.0,0.48093494]
[1720001680285,2.44980091,60385.0,60380.0,0.48093494]
[1720001680450,2.44980091,60385.0,60369.0,0.22535152]
[1720001680451,2.6203161,60384.0,60369.0,0.22535152]
[1720001680663,2.4600173,60383.0,60369.0,0.22535152]
[1720001680857,2.70491706,60382.0,60369.0,0.22535152]
[1720001681058,2.4600173,60381.0,60369.0,0.22535152]
[1720001681382,0.24489976,60382.0,60370.0,0.02959802]
[1720001681383,2.6203161,60380.0,60370.0,0.02959802]
[1720001681581,2.6203161,60380.0,60369.0,0.22535152]
[1720001681582,2.4600173,60379.0,60369.0,0.22535152]
[1720001681789,2.6203161,60378.0,60369.0,0.22535152]
[1720001681958,2.4600173,60377.0,60369.0,0.22535152]
[1720001682110,2.6203161,60376.0,60369.0,0.22535152]
[1720001682334,2.6203161,60376.0,60370.0,0.02253515]
[1720001682335,1.1802753,60375.0,60370.0,0.02253515]
[1720001682543,1.285524,60374.0,60370.0,0.02253515]
[1720001682740,0.05134531,60373.0,60369.0,0.22535152]
[1720001682947,1.010587,60372.0,60369.0,0.22535152]
[1720001683153,0.97395615,60371.0,60369.0,0.22535152]
[1720001683377,0.61946967,60370.0,60369.0,0.22535152]
[1720001683634,0.68566967,60370.0,60369.0,0.22535152]
[1720001683845,0.87271789,60370.0,60369.0,0.22535152]
[1720001684441,0.05192089,60370.0,60369.0,0.22535152]
[1720001684649,1.52069273,60370.0,60369.0,0.22535152]
[1720001684882,1.59989273,60370.0,60369.0,0.22535152]
[1720001685119,1.38156873,60370.0,60369.0,0.22535152]
[1720001685550,1.33986738,60370.0,60369.0,0.22535152]
[1720001685789,1.329947,60370.0,60369.0,0.22535152]
[1720001686042,0.01,60370.0,60369.0,0.22535152]
[1720001686494,2.4115,60373.0,60369.0,0.22535152]
[1720001686724,0.011,60370.0,60369.0,0.22535152]
[1720001686942,2.031822,60370.0,60369.0,0.22535152]
[1720001687171,2.093626,60370.0,60369.0,0.22535152]
[1720001687410,2.079598,60370.0,60369.0,0.22535152]
[1720001687655,2.4115,60375.0,60369.0,0.22535152]
[1720001687887,0.041109,60374.0,60369.0,0.22535152]
[1720001688109,1.915648,60373.0,60369.0,0.22535152]
[1720001688315,1.457858,60372.0,60369.0,0.22535152]
[1720001688523,0.1602988,60376.0,60369.0,0.22535152]
[1720001688524,2.4115,60375.0,60369.0,0.22535152]
[1720001688669,0.0411088,60374.0,60369.0,0.22535152]
[1720001688882,1.261303,60373.0,60369.0,0.22535152]
[1720001689090,0.77434,60372.0,60369.0,0.22535152]
[1720001690144,0.014,60374.0,60369.0,0.22535152]
[1720001690447,1.053427,60373.0,60369.0,0.22535152]
[1720001690647,1.511303,60375.0,60369.0,0.24788667]
[1720001690863,1.511303,60375.0,60369.0,0.22535152]
[1720001690864,1.593263,60375.0,60369.0,0.22535152]
[1720001691470,1.497499,60375.0,60369.0,0.22535152]
[1720001691668,1.563699,60375.0,60369.0,0.22535152]
[1720001691894,0.014,60372.0,60369.0,0.22535152]
[1720001692128,0.877378,60371.0,60369.0,0.22535152]
[1720001692622,0.1602988,60376.0,60369.0,0.22535152]
[1720001692623,1.577699,60375.0,60369.0,0.22535152]
[1720001692868,1.960782,60374.0,60369.0,0.22535152]
[1720001693004,2.4115,60375.0,60369.0,0.22535152]
[1720001693207,0.013,60372.0,60369.0,0.22535152]
[1720001693442,2.4115,60371.0,60369.0,0.22535152]
[1720001693624,0.1602988,60376.0,60369.0,0.22535152]
[1720001693625,2.4115,60375.0,60369.0,0.22535152]
[1720001693831,2.4255,60375.0,60369.0,0.22535152]
[1720001694107,1.765556,60374.0,60369.0,0.22535152]
[1720001694518,0.04061197,60373.0,60369.0,0.22535152]
[1720001694698,1.326346,60372.0,60369.0,0.22535152]
[1720001694928,0.01021963,60371.0,60369.0,0.22535152]
[1720001695061,1.15656563,60371.0,60369.0,0.22535152]
[1720001695262,0.927016,60370.0,60369.0,0.22535152]
[1720001695451,0.01021981,60370.0,60369.0,0.22535152]
[1720001695652,0.014,60372.0,60369.0,0.22535152]
[1720001695849,1.04938371,60371.0,60369.0,0.22535152]
[1720001696075,0.95433571,60370.0,60369.0,0.22535152]
[1720001697778,0.95433571,60370.0,60369.0,0.24788667]
[1720001697779,0.21804,60370.0,60369.0,0.24788667]
[1720001697980,0.16063546,60414.0,60378.0,0.22535152]
[1720001697981,0.00084,60414.0,60378.0,0.22535152]
[1720001698192,0.48093494,60394.0,60378.0,0.22535152]
[1720001698314,2.4115,60411.0,60378.0,0.22535152]
[1720001698315,2.5717988,60393.0,60378.0,0.22535152]
[1720001698519,2.44973525,60392.0,60378.0,0.24788667]
[1720001698746,2.61003405,60391.0,60378.0,0.24788667]
[1720001698970,2.29283625,60390.0,60378.0,0.24788667]
[1720001699166,0.08456986,60411.0,60379.0,0.22535152]
[1720001699167,2.15924705,60389.0,60379.0,0.22535152]
[1720001699384,1.60605225,60388.0,60379.0,0.22535152]
[1720001699590,0.08456986,60411.0,60379.0,0.22535152]
[1720001699591,1.90207605,60387.0,60379.0,0.22535152]
[1720001699807,1.74185925,60386.0,60379.0,0.22535152]
[1720001700008,1.67698925,60385.0,60379.0,0.22535152]
[1720001700228,1.31195425,60384.0,60379.0,0.22535152]
[1720001700446,0.1602988,60386.0,60379.0,0.22535152]
[1720001700447,0.99128025,60383.0,60379.0,0.22535152]
[1720001700778,2.44973525,60382.0,60379.0,0.22535152]
[1720001700976,2.189208,60381.0,60379.0,0.22535152]
[1720001701271,0.04906247,60380.0,60379.0,0.22535152]
[1720001701471,1.28430347,60380.0,60379.0,0.22535152]
[1720001701648,1.21810347,60380.0,60379.0,0.22535152]
[1720001702051,0.46776647,60380.0,60379.0,0.22535152]
[1720001703059,0.45754569,60380.0,60379.0,0.22535152]
[1720001703467,1.87189869,60380.0,60379.0,0.22535152]
[1720001703666,1.84436069,60380.0,60379.0,0.22535152]
[1720001703888,1.805519,60380.0,60379.0,0.22535152]
[1720001704098,1.85126924,60380.0,60379.0,0.22535152]
[1720001704463,1.85126924,60380.0,60379.0,0.24788667]
[1720001704670,0.508,60380.0,60379.0,0.24788667]
[1720001705147,0.5182239,60380.0,60379.0,0.24788667]
[1720001705549,0.5102239,60380.0,60379.0,0.40818547]
[1720001705662,0.5102239,60380.0,60379.0,0.38565032]
[1720001705859,0.5162239,60380.0,60379.0,0.38565032]
[1720001706063,0.5102239,60380.0,60379.0,0.38565032]
[1720001706473,0.502,60380.0,60379.0,0.38565032]
[1720001706678,0.5,60380.0,60379.0,0.42421535]
[1720001706976,0.50084,60380.0,60379.0,0.42421535]
[1720001708022,0.47345032,60380.0,60379.0,0.42421535]
[1720001708246,0.43738671,60380.0,60379.0,0.42421535]
[1720001708990,0.43738671,60380.0,60379.0,0.42621535]
[1720001709206,0.43738671,60380.0,60379.0,0.42421535]
[1720001709419,0.41090431,60380.0,60379.0,0.42621535]
[1720001709633,0.41090431,60380.0,60379.0,0.42421535]
[1720001710049,0.41190431,60380.0,60379.0,0.42721535]
[1720001711570,0.41190431,60380.0,60379.0,0.47664185]
[1720001711571,0.36807787,60380.0,60379.0,0.47664185]
[1720001711795,0.01728471,60380.0,60379.0,0.47664185]
[1720001712006,0.08015582,60428.0,60413.0,0.22535152]
[1720001712216,0.05047337,60414.0,60413.0,0.24788667]
[1720001712425,0.01106593,60414.0,60413.0,0.24788667]
[1720001712631,0.59450693,60414.0,60413.0,0.22535152]
[1720001712869,0.79252493,60414.0,60413.0,0.22535152]
[1720001713108,0.97029893,60414.0,60413.0,0.22535152]
[1720001713314,0.79252575,60414.0,60413.0,0.22535152]
[1720001713517,0.02506675,60414.0,60413.0,0.22535152]
[1720001713720,0.02506675,60414.0,60413.0,0.40818547]
[1720001713924,0.01484,60414.0,60413.0,0.40818547]
[1720001714748,0.01484,60414.0,60413.0,0.24788667]
[1720001714949,0.02506745,60414.0,60413.0,0.22535152]
[1720001715358,0.01106742,60414.0,60413.0,0.22535152]
[1720001715604,0.18436622,60414.0,60389.0,0.04939987]
[1720001715812,0.08015582,60397.0,60366.0,0.48093494]
[1720001716017,0.08015582,60390.0,60369.0,0.22627552]
[1720001716230,2.42171943,60389.0,60369.0,0.22627552]
[1720001716441,2.4115,60388.0,60369.0,0.22627552]
[1720001716657,0.2096987,60387.0,60370.0,0.07072105]
[1720001716863,2.4608999,60386.0,60369.0,0.22627552]
[1720001717073,2.6211987,60385.0,60369.0,0.22627552]
[1720001717298,2.4608999,60384.0,60369.0,0.22627552]
[1720001717512,0.08015582,60390.0,60369.0,0.22627552]
[1720001717513,2.6211987,60383.0,60369.0,0.22627552]
[1720001717733,2.3788319,60382.0,60370.0,0.02262755]
[1720001717981,2.4695237,60381.0,60370.0,0.02262755]
[1720001718198,1.4245919,60380.0,60370.0,0.02262755]
[1720001718416,1.64704523,60379.0,60370.0,0.02262755]
[1720001718646,1.92255543,60378.0,60371.0,0.02489031]
[1720001718882,2.01363923,60377.0,60369.0,0.22627552]
[1720001719102,1.75309143,60376.0,60369.0,0.22627552]
[1720001719338,1.154896,60375.0,60369.0,0.22627552]
[1720001719561,0.02013808,60375.0,60370.0,0.02262755]
[1720001719791,0.02013808,60374.0,60373.0,0.22535152]
[1720001720036,0.02013429,60374.0,60373.0,0.22535152]
[1720001720536,0.02013429,60379.0,60373.0,0.22535152]
[1720001720764,0.02013429,60378.0,60373.0,0.25024183]
[1720001720991,0.976095,60377.0,60375.0,0.22535152]
[1720001721216,0.02013429,60376.0,60375.0,0.22535152]
[1720001721450,0.40345329,60376.0,60375.0,0.22535152]
[1720001721679,0.24898829,60376.0,60375.0,0.22535152]
[1720001721916,0.24898829,60376.0,60375.0,0.24788667]
[1720001721917,0.02013429,60376.0,60375.0,0.24788667]
[1720001722394,0.00084,60414.0,60375.0,0.24788667]
[1720001722395,0.02013429,60377.0,60375.0,0.24788667]
[1720001722662,0.21868384,60396.0,60386.0,0.22535152]
[1720001722908,0.48093494,60392.0,60386.0,0.22535152]
[1720001723146,1.507882,60391.0,60386.0,0.24788667]
[1720001723331,2.124573,60390.0,60386.0,0.24788667]
[1720001723600,1.75487,60389.0,60386.0,0.24788667]
[1720001723828,2.411061,60388.0,60384.0,0.22535152]
[1720001724058,2.390783,60387.0,60384.0,0.22535152]
[1720001724331,1.812831,60386.0,60384.0,0.22535152]
[1720001724572,1.786853,60385.0,60384.0,0.22535152]
[1720001724806,1.786853,60385.0,60384.0,0.24788667]
[1720001724807,0.957471,60385.0,60384.0,0.24788667]
[1720001725032,0.742271,60385.0,60384.0,0.24788667]
[1720001725265,0.01792519,60385.0,60384.0,0.24788667]
[1720001726576,0.014,60386.0,60384.0,0.24788667]
[1720001726826,0.014,60386.0,60385.0,0.22535152]
[1720001727054,0.014,60386.0,60385.0,0.25014019]
[1720001728196,0.014,60386.0,60385.0,0.41043899]
[1720001728406,0.00084,60414.0,60398.0,0.22535152]
[1720001728623,1.097488,60403.0,60398.0,0.22535152]
[1720001728842,2.411061,60410.0,60398.0,0.22535152]
[1720001729067,0.1602988,60409.0,60398.0,0.22535152]
[1720001729288,0.08015582,60404.0,60398.0,0.22535152]
[1720001729731,2.56688835,60403.0,60390.0,0.22535152]
[1720001729947,0.08015582,60391.0,60389.0,0.22535152]
[1720001730165,1.612037,60390.0,60389.0,0.22535152]
[1720001730388,1.322337,60390.0,60389.0,0.22535152]
[1720001730606,0.1602988,60403.0,60396.0,0.22535152]
[1720001730844,1.556609,60402.0,60396.0,0.22535152]
[1720001731014,1.819369,60401.0,60396.0,0.22535152]
[1720001731354,1.789799,60401.0,60396.0,0.22535152]
[1720001731550,1.33343798,60400.0,60396.0,0.24788667]
[1720001731722,1.59354713,60399.0,60396.0,0.24788667]
[1720001731939,1.21836398,60398.0,60396.0,0.24788667]
[1720001732163,1.14216398,60397.0,60396.0,0.24788667]
[1720001732578,0.84700098,60397.0,60396.0,0.24788667]
[1720001732873,0.74713598,60397.0,60396.0,0.24788667]
[1720001733088,0.70000785,60397.0,60396.0,0.24788667]
[1720001733296,0.41030785,60397.0,60396.0,0.24788667]
[1720001733879,0.40911093,60397.0,60396.0,0.24788667]
[1720001734448,0.76831193,60397.0,60396.0,0.24788667]
[1720001734667,0.24958793,60397.0,60396.0,0.24788667]
[1720001734875,0.21498993,60397.0,60396.0,0.24788667]
[1720001735505,0.21498993,60397.0,60396.0,0.22535152]
[1720001736142,0.01788793,60397.0,60396.0,0.22535152]
[1720001736451,0.21578993,60397.0,60396.0,0.22535152]
[1720001737283,0.197902,60397.0,60396.0,0.22535152]
[1720001737448,0.21526409,60397.0,60396.0,0.22535152]
[1720001737652,0.197902,60397.0,60396.0,0.22535152]
[1720001738017,0.21527184,60397.0,60396.0,0.24788667]
[1720001738599,0.22527184,60397.0,60396.0,0.24788667]
[1720001739027,0.21527184,60397.0,60396.0,0.24788667]
[1720001739430,0.02736984,60397.0,60396.0,0.40818547]
[1720001739866,0.01736984,60397.0,60396.0,0.40818547]
[1720001740069,0.00084,60414.0,60408.0,0.22535152]
[1720001740301,2.28771811,60410.0,60408.0,0.22535152]
[1720001740518,0.98749,60409.0,60408.0,0.22535152]
[1720001740775,1.14158437,60409.0,60408.0,0.22535152]
[1720001741000,2.36172737,60409.0,60408.0,0.22535152]
[1720001741451,2.36172737,60409.0,60396.0,0.18283395]
[1720001741452,2.36172737,60409.0,60403.0,0.22535152]
[1720001741668,2.48499955,60408.0,60403.0,0.22535152]
[1720001741904,0.00084,60414.0,60403.0,0.22535152]
[1720001741905,2.48499955,60407.0,60403.0,0.22535152]
[1720001742117,0.00084,60414.0,60410.0,0.22535152]
[1720001742338,0.00084,60414.0,60411.0,0.22535152]
[1720001742339,2.48248179,60413.0,60411.0,0.22535152]
[1720001742547,0.00084,60414.0,60412.0,0.22535152]
[1720001742758,1.3691495,60413.0,60412.0,0.24788667]
[1720001742967,0.4461005,60413.0,60412.0,0.24788667]
[1720001743180,0.4461005,60413.0,60412.0,0.22535152]
[1720001743584,0.44503179,60413.0,60412.0,0.22535152]
[1720001744673,0.03006542,60413.0,60412.0,0.38565032]
[1720001744876,0.03006542,60413.0,60412.0,0.42421535]
[1720001745077,0.01606542,60413.0,60412.0,0.42421535]
[1720001745411,0.02606542,60413.0,60412.0,0.42421535]
[1720001746203,0.00084,60414.0,60413.0,0.22535152]
[1720001746363,0.00084,60414.0,60413.0,0.42807186]
[1720001746573,0.01713312,60414.0,60413.0,0.42807186]
[1720001746783,0.00084,60414.0,60413.0,0.42807186]
[1720001748642,0.00184,60414.0,60413.0,0.43207186]
[1720001748777,0.01841397,60414.0,60413.0,0.43207186]
[1720001749931,0.01864342,60414.0,60413.0,0.43207186]
[1720001751382,0.01764342,60414.0,60413.0,0.42807186]
[1720001751754,0.01864342,60414.0,60413.0,0.43107186]
[1720001752649,0.00184,60414.0,60413.0,0.43107186]
[1720001755075,0.48093494,60437.0,60436.0,0.22535152]
[1720001755317,0.1602988,60451.0,60439.0,0.22535152]
[1720001755526,2.4352528,60450.0,60439.0,0.22535152]
[1720001755721,2.44960002,60449.0,60439.0,0.22535152]
[1720001755920,2.48140322,60448.0,60439.0,0.22535152]
[1720001756203,0.18121448,60457.0,60439.0,0.22535152]
[1720001756204,2.5713598,60447.0,60439.0,0.22535152]
[1720001756358,2.411061,60446.0,60439.0,0.22535152]
[1720001756562,0.30970032,60445.0,60431.0,0.22535152]
[1720001756759,0.08015582,60438.0,60435.0,0.22535152]
[1720001756983,0.0692457,60437.0,60435.0,0.22535152]
[1720001757187,0.0692457,60437.0,60435.0,0.24788667]
[1720001757188,2.411061,60436.0,60435.0,0.24788667]
[1720001757391,2.4803067,60436.0,60435.0,0.02253515]
[1720001757593,2.4803067,60436.0,60431.0,0.22535152]
[1720001757744,2.4803067,60435.0,60431.0,0.22535152]
[1720001757947,2.4803067,60434.0,60431.0,0.22535152]
[1720001758146,2.4803067,60433.0,60431.0,0.22535152]
[1720001758427,2.4803067,60432.0,60431.0,0.22535152]
[1720001758926,2.4803067,60432.0,60431.0,0.22635152]
[1720001759141,2.4803067,60432.0,60431.0,0.22535152]
[1720001759347,2.411061,60432.0,60431.0,0.22535152]
[1720001759587,0.06941596,60432.0,60431.0,0.22635152]
[1720001759791,2.411061,60433.0,60431.0,0.22535152]
[1720001760001,0.01558303,60432.0,60431.0,0.22635152]
[1720001760205,2.421061,60432.0,60431.0,0.22635152]
[1720001760408,2.49047752,60432.0,60431.0,0.22635152]
[1720001760877,2.49047752,60432.0,60431.0,0.001]
[1720001761129,2.65077632,60432.0,60431.0,0.001]
[1720001761357,2.73905659,60432.0,60422.0,0.22535152]
[1720001761608,2.64077632,60431.0,60422.0,0.22535152]
[1720001761821,2.64077632,60431.0,60405.0,0.22535152]
[1720001761822,0.08015582,60424.0,60405.0,0.22535152]
[1720001762080,0.08015582,60424.0,60409.0,0.48093494]
[1720001762081,0.21349197,60423.0,60409.0,0.48093494]
[1720001762301,0.21349197,60423.0,60405.0,0.22535152]
[1720001762302,0.0681102,60422.0,60405.0,0.22535152]
[1720001762516,0.17433108,60421.0,60408.0,0.22535152]
[1720001762727,0.17433108,60421.0,60389.0,0.08015582]
[1720001762728,0.06637742,60420.0,60411.0,0.22535152]
[1720001762939,0.1602988,60419.0,60411.0,0.22535152]
[1720001763149,0.06637742,60418.0,60408.0,0.22535152]
[1720001763375,0.27095105,60417.0,60408.0,0.22535152]
[1720001763584,0.06637742,60416.0,60408.0,0.22535152]
[1720001763793,0.22667622,60415.0,60408.0,0.22535152]
[1720001764001,0.06637742,60414.0,60408.0,0.22535152]
[1720001764212,0.1602988,60415.0,60408.0,0.22535152]
[1720001764213,0.06637742,60413.0,60408.0,0.22535152]
[1720001764420,0.06637742,60412.0,60408.0,0.22535152]
[1720001764629,0.06482215,60411.0,60408.0,0.22535152]
[1720001764837,0.0132329,60411.0,60408.0,0.22535152]
[1720001765053,2.47588315,60410.0,60408.0,0.22535152]
[1720001765250,2.31421915,60409.0,60408.0,0.22535152]
[1720001765455,2.31421915,60409.0,60408.0,0.001]
[1720001765666,2.31421915,60409.0,60405.0,0.22535152]
[1720001765874,2.47588315,60408.0,60400.0,0.22535152]
[1720001766140,2.47588315,60407.0,60398.0,0.22535152]
[1720001766361,2.47588315,60406.0,60399.0,0.22535152]
[1720001766564,2.63618195,60405.0,60399.0,0.22535152]
[1720001766786,2.47588315,60404.0,60397.0,0.22535152]
[1720001766985,0.1602988,60405.0,60399.0,0.22535152]
[1720001766986,2.47588315,60403.0,60399.0,0.22535152]
[1720001767126,2.47588315,60403.0,60389.0,0.08015582]
[1720001767127,2.47588315,60402.0,60397.0,0.22535152]
[1720001767329,2.47588315,60401.0,60397.0,0.22535152]
[1720001767535,0.06482215,60400.0,60398.0,0.22535152]
[1720001767744,0.06150019,60399.0,60397.0,0.22535152]
[1720001767944,0.1602988,60405.0,60396.0,0.22535152]
[1720001767945,0.04990772,60398.0,60396.0,0.22535152]
[1720001768301,0.01153392,60397.0,60396.0,0.22535152]
[1720001769261,0.01153392,60397.0,60396.0,0.003]
[1720001769462,2.42259492,60397.0,60392.0,0.22535152]
[1720001769665,2.42259492,60396.0,60392.0,0.22535152]
[1720001770009,0.1602988,60405.0,60392.0,0.22535152]
[1720001770010,2.42259492,60395.0,60392.0,0.22535152]
[1720001770217,2.42259492,60394.0,60388.0,0.22535152]
[1720001770421,0.01153392,60393.0,60388.0,0.22535152]
[1720001770569,0.01153392,60392.0,60387.0,0.22535152]
[1720001770776,2.411061,60394.0,60391.0,0.22535152]
[1720001771002,0.4702,60411.0,60388.0,0.10269097]
[1720001771003,0.4702,60411.0,60395.0,0.22535152]
[1720001771218,0.1602988,60410.0,60395.0,0.22535152]
[1720001771355,0.26561206,60410.0,60395.0,0.22535152]
[1720001771554,0.014,60396.0,60395.0,0.22535152]
[1720001771806,1.52864123,60396.0,60395.0,0.22535152]
[1720001772007,0.79584076,60396.0,60395.0,0.22535152]
[1720001772434,0.79584076,60396.0,60395.0,0.24788667]
[1720001772649,0.49351276,60396.0,60395.0,0.24788667]
[1720001772850,0.47951276,60396.0,60395.0,0.24788667]
[1720001773020,0.47951276,60396.0,60395.0,0.24888667]
[1720001773021,0.49351276,60396.0,60395.0,0.24888667]
[1720001773204,0.49351276,60396.0,60395.0,0.22635152]
[1720001773442,0.02477176,60396.0,60395.0,0.22635152]
[1720001773735,0.283078,60396.0,60395.0,0.22635152]
[1720001773915,0.66212139,60396.0,60395.0,0.22635152]
[1720001774695,0.64812139,60396.0,60394.0,0.000924]
[1720001774901,2.42250439,60395.0,60394.0,0.000924]
[1720001776123,2.47139014,60395.0,60394.0,0.001924]
[1720001776462,2.48539014,60395.0,60394.0,0.001924]
[1720001776816,2.425061,60395.0,60394.0,0.001924]
[1720001777017,2.48445706,60395.0,60394.0,0.001924]
[1720001780028,2.425061,60395.0,60394.0,0.001924]
[1720001780337,2.644788,60395.0,60394.0,0.001924]
[1720001782843,2.644788,60395.0,60394.0,0.00186666]
[1720001783080,2.5853598,60395.0,60394.0,0.00186666]
[1720001783312,2.64332453,60395.0,60394.0,0.00186666]
[1720001783747,2.64237163,60395.0,60394.0,0.00186666]
[1720001785209,2.72034139,60395.0,60394.0,0.00086666]
[1720001785412,2.72034139,60395.0,60394.0,0.10086666]
[1720001785838,2.73434139,60395.0,60394.0,0.10186666]
[1720001786326,2.73451122,60395.0,60394.0,0.10186666]
[1720001786544,2.71873037,60395.0,60394.0,0.10086666]
[1720001786978,2.71873037,60395.0,60394.0,0.10186666]
[1720001786979,2.73273037,60395.0,60394.0,0.10186666]
[1720001787189,2.73273037,60395.0,60394.0,0.10086666]
[1720001787190,2.71873037,60395.0,60394.0,0.10086666]
[1720001787657,2.73273037,60395.0,60394.0,0.10186666]
[1720001787896,2.5853598,60395.0,60394.0,0.10186666]
[1720001788106,2.7299253,60395.0,60394.0,0.10186666]
[1720001788839,2.7159253,60395.0,60394.0,0.10086666]
[1720001789064,2.7299253,60395.0,60394.0,0.10186666]
[1720001790116,2.5853598,60395.0,60394.0,0.10186666]
[1720001790963,2.73425435,60395.0,60394.0,0.10186666]
[1720001791851,2.5853598,60395.0,60394.0,0.10186666]
[1720001792090,2.73653166,60395.0,60394.0,0.10186666]
[1720001792301,2.73653166,60395.0,60394.0,0.07635872]
[1720001792502,2.73653166,60395.0,60394.0,0.06872285]
[1720001792698,2.73653166,60395.0,60394.0,0.04227366]
[1720001793503,2.72253166,60395.0,60394.0,0.04127366]
[1720001793727,2.72253166,60395.0,60394.0,0.04227366]
[1720001793979,2.87916253,60395.0,60394.0,0.04227366]
[1720001794363,2.87916253,60395.0,60369.0,0.000924]
[1720001794602,0.1602988,60370.0,60369.0,0.000924]
[1720001794815,2.62948177,60370.0,60369.0,0.000924]
[1720001795511,2.72065583,60370.0,60369.0,0.000924]
[1720001795729,2.86995054,60370.0,60369.0,0.000924]
[1720001795936,2.87595054,60370.0,60369.0,0.000924]
[1720001796359,2.86995054,60370.0,60369.0,0.000924]
[1720001796590,2.88395054,60370.0,60369.0,0.000924]
[1720001797059,2.86995054,60370.0,60369.0,0.000924]
[1720001797275,2.88395054,60370.0,60369.0,0.000924]
[1720001798607,2.73465583,60370.0,60369.0,0.000924]
[1720001798830,2.8824422,60370.0,60369.0,0.000924]
[1720001799061,3.00974368,60370.0,60369.0,0.000924]
[1720001799288,3.02374368,60370.0,60369.0,0.000924]
[1720001799761,3.00974368,60370.0,60369.0,0.000924]
[1720001800207,3.02374368,60370.0,60369.0,0.000924]
[1720001800478,3.02374368,60370.0,60369.0,0.00050102]
[1720001800720,3.02374368,60370.0,60345.0,0.48093494]
[1720001800721,0.61268268,60370.0,60345.0,0.48093494]
[1720001800951,0.61268268,60370.0,60337.0,0.009196]
[1720001800952,0.24045462,60346.0,60337.0,0.009196]
[1720001801177,0.08015582,60338.0,60320.0,0.05366175]
[1720001801384,0.08015582,60321.0,60320.0,0.05366175]
[1720001801612,4.59867186,60321.0,60297.0,0.46166457]
[1720001802107,0.1602988,60298.0,60297.0,0.33119557]
[1720001802338,0.1602988,60298.0,60271.0,0.00082336]
[1720001802339,5.16642934,60298.0,60280.0,0.18517952]
[1720001802604,0.84862822,60289.0,60274.0,0.19217208]
[1720001802840,0.84862822,60289.0,60274.0,0.16717208]
[1720001802841,3.9554185,60288.0,60274.0,0.16717208]
[1720001803094,0.1602988,60275.0,60274.0,0.16717208]
[1720001803354,0.32009426,60275.0,60274.0,0.16717208]
[1720001803816,0.1602988,60275.0,60274.0,0.16717208]
[1720001804068,2.9773738,60275.0,60274.0,0.16717208]
[1720001804294,2.2527208,60275.0,60274.0,0.16717208]
[1720001804785,0.80494051,60275.0,60274.0,0.16717208]
[1720001806057,0.60436651,60275.0,60274.0,0.16717208]
[1720001806299,0.15979546,60298.0,60274.0,0.16717208]
[1720001806531,0.48093494,60292.0,60291.0,0.08015582]
[1720001806773,0.1356204,60292.0,60284.0,0.08015582]
[1720001806997,0.15979546,60307.0,60284.0,0.08015582]
[1720001806998,2.2148298,60291.0,60284.0,0.08015582]
[1720001807255,2.2148298,60291.0,60277.0,0.08015582]
[1720001807256,2.816922,60290.0,60277.0,0.08015582]
[1720001807480,0.1602988,60289.0,60277.0,0.08015582]
[1720001807745,0.15979546,60306.0,60286.0,0.22535152]
[1720001807971,0.15979546,60306.0,60284.0,0.08015582]
[1720001807972,0.48093494,60304.0,60293.0,0.30550734]
[1720001808192,1.0400908,60303.0,60294.0,0.08015582]
[1720001808427,1.0400908,60303.0,60290.0,0.22535152]
[1720001808428,1.720803,60302.0,60290.0,0.22535152]
[1720001808663,0.1602988,60303.0,60290.0,0.22535152]
[1720001808664,0.447438,60301.0,60291.0,0.08015582]
[1720001808893,0.531714,60300.0,60294.0,0.22535152]
[1720001809116,0.531714,60300.0,60298.0,0.08015582]
[1720001809363,0.1602988,60300.0,60294.0,0.22535152]
[1720001809632,0.15979546,60322.0,60284.0,0.08015582]
[1720001809633,3.0558848,60299.0,60289.0,0.22535152]
[1720001809879,1.530472,60298.0,60291.0,0.08015582]
[1720001810131,1.3767028,60297.0,60291.0,0.08015582]
[1720001810358,1.3767028,60297.0,60287.0,0.22535152]
[1720001810359,2.011844,60296.0,60287.0,0.22535152]
[1720001810614,1.581366,60296.0,60294.0,0.22535152]
[1720001810881,0.56824,60295.0,60294.0,0.22535152]
[1720001811079,0.450507,60295.0,60294.0,0.22535152]
[1720001811311,0.1602988,60312.0,60298.0,0.22535152]
[1720001811530,2.061699,60311.0,60298.0,0.22535152]
[1720001811764,0.8894428,60310.0,60300.0,0.22535152]
[1720001811983,0.1602988,60308.0,60289.0,0.22535152]
[1720001812256,0.08015582,60319.0,60295.0,0.22535152]
[1720001812257,2.5107778,60307.0,60295.0,0.22535152]
[1720001812474,2.074721,60306.0,60297.0,0.22535152]
[1720001812699,1.5541068,60305.0,60297.0,0.22535152]
[1720001812920,0.331,60326.0,60300.0,0.22535152]
[1720001812921,0.348525,60304.0,60300.0,0.22535152]
[1720001813173,0.1602988,60304.0,60298.0,0.22535152]
[1720001813393,0.495436,60303.0,60298.0,0.22535152]
[1720001813853,0.1655,60326.0,60302.0,0.22535152]
[1720001814078,2.2992058,60319.0,60302.0,0.22535152]
[1720001814305,0.1602988,60306.0,60288.0,0.22535152]
[1720001814561,0.08015582,60311.0,60259.0,0.12882331]
[1720001814562,0.08015582,60304.0,60281.0,0.22535152]
[1720001814828,0.08015582,60304.0,60279.0,0.22535152]
[1720001814829,0.08015582,60297.0,60279.0,0.22535152]
[1720001815051,3.861271,60296.0,60280.0,0.22535152]
[1720001815284,3.861271,60296.0,60259.0,0.08015582]
[1720001815285,3.861271,60296.0,60279.0,0.22535152]
[1720001815502,2.9998248,60295.0,60281.0,0.22535152]
[1720001815728,0.999918,60294.0,60285.0,0.22535152]
[1720001815953,2.4852818,60293.0,60281.0,0.22535152]
[1720001816210,1.939307,60292.0,60281.0,0.22535152]
[1720001816455,0.08015582,60304.0,60281.0,0.22535152]
[1720001816456,1.1951938,60291.0,60281.0,0.22535152]
[1720001816704,2.695896,60290.0,60276.0,0.22535152]
[1720001816957,0.1602988,60289.0,60277.0,0.22535152]
[1720001817213,3.27529,60288.0,60277.0,0.22535152]